Posting Date,Expenditure Area,Supplier Name,Amount,Expense Type,Reason for Expense
22-Oct-20,Culture & Environment Services,The Windscreen Co,48.00,Direct Transport Costs,1 X CHIP REPAIR FOR AV13 OPL
02-Oct-20,Housing & Community Services,Cpw Locksmiths And Securi,260.00,HRA Special Repairs & Maintenance,104 CT attend replace cylinder supply key and rekey cylinder
13-Oct-20,Culture & Environment Services,Halfords 0883,21.50,Materials and Supplies - Miscellaneous,2 cans black paint for signs
26-Oct-20,Culture & Environment Services,Cpw Locksmiths And Securi,25.00,Equipment / Furniture / Materials,2 x 2 additional keys for Fore Street
09-Oct-20,Finance & Revenues,Amznmktplace,167.96,Equipment / Furniture / Materials,2 x All In One HP Printers ICT
09-Oct-20,People & Governance,Viking Uk,9.68,Stationery,2021 Diaries
20-Oct-20,Culture & Environment Services,Buildbase - Ipswich,45.08,Equipment / Furniture / Materials,2L Dispensers - PLAY AREA INSPECTOR
01-Oct-20,Housing & Community Services,Cpw Locksmiths And Securi,10.83,HRA Special Repairs & Maintenance,6 AHC key
22-Oct-20,Culture & Environment Services,Kings,30.00,Materials and Supplies - Miscellaneous,6 x keys cut
02-Oct-20,Housing & Community Services,Cpw Locksmiths And Securi,100.00,HRA Special Repairs & Maintenance,IBC Property - remove key and replace cylinder
06-Oct-20,People & Governance,Amznmktplace,32.01,Miscellaneous Stock  - Purchases,A1 Correx Boards for outside Mansion Signage
01-Oct-20,Culture & Environment Services,Ryman,23.31,Equipment / Furniture / Materials,A3 Laminate Pouches and Velcro Tabs
21-Oct-20,Housing & Community Services,Amznmktplace,4.16,Equipment / Furniture / Materials,AAAA stylus batteries food team
19-Oct-20,Housing & Community Services,Amznmktplace,7.90,Equipment / Furniture / Materials,"AAAA stylus batteries, to be refunded as not delivered"
28-Oct-20,Finance & Revenues,Www.Aat-Org.Uk,159.00,Employee Expenses,AAT Subscription
19-Oct-20,Culture & Environment Services,Emap Publishing Ltd,52.04,Equipment / Furniture / Materials,Magazine Subscription
19-Oct-20,Culture & Environment Services,Emap Publishing Ltd,78.05,Equipment / Furniture / Materials,Magazine Subscription
05-Oct-20,Housing & Community Services,Amazon Prime,7.99,Equipment / Furniture / Materials,REDACTED
30-Oct-20,Culture & Environment Services,Ropesdirect.Co.Uk,323.45,GF_Contract Repair & Maintenance,Annual Replacement of Hemp Ropes at Regent
05-Oct-20,People & Governance,Arts Marketing Ass,315.00,Advertising/Publicity,Arts Marketing Association membership exp 30 June 2021
26-Oct-20,Housing & Community Services,Waitrose 632,7.21,Equipment - Repairs,Batteries
09-Oct-20,Culture & Environment Services,Powertool World,216.50,Equipment / Furniture / Materials,Batteries for power tools
14-Oct-20,Housing & Community Services,Gen Register Office,14.00,Specific Campaigns / Projects expenditure,birth cert for Navigator client
08-Oct-20,Culture & Environment Services,Screwfix Direct,10.85,Miscellaneous Stock  - Purchases,Black Cable Ties - LANDSCAPE TEAM
19-Oct-20,Culture & Environment Services,Amznmktplace,19.58,Cleaning Supplies,Bleach for masons
07-Oct-20,Culture & Environment Services,B & Q 1315,58.75,Miscellaneous Stock  - Purchases,Blue Circle Mastercrete - SHERRINGTON REC
13-Oct-20,Culture & Environment Services,Poundstretcher 268,12.80,Materials and Supplies - Miscellaneous,"Brushes x 3, Bin x 1"
22-Oct-20,Culture & Environment Services,Agri-Hire Ltd,2.74,Materials and Supplies - Miscellaneous,Bush Cat 3-2 x 1
20-Oct-20,Finance & Revenues,Kenable Ltd,24.28,Computer Equipment - Purchase,C5 Power Cables x 12
14-Oct-20,Finance & Revenues,Dri*,120.80,Computer Equipment - Purchase,call-recording software for ServiceDesk
12-Oct-20,Culture & Environment Services,Paypal,3.39,Miscellaneous Expenses,case for mobile phone
01-Oct-20,Culture & Environment Services,Sp * Univar Specialty,45.43,Materials and Supplies - Miscellaneous,Castrol Hyspin Hydraulic Oil
06-Oct-20,Culture & Environment Services,Wickes Ipswich,5.00,Materials and Supplies - Miscellaneous,Cement - CHANTRY HUB
09-Oct-20,Culture & Environment Services,B & Q 1315,30.09,Miscellaneous Stock  - Purchases,Cement - SHERRINGTON REC
07-Oct-20,Culture & Environment Services,Screwfix Direct,16.66,Fixtures & Fittings,Chain for Overflow/Speedway gate
23-Oct-20,Culture & Environment Services,Halfords 0883,10.83,Equipment / Furniture / Materials,Chemical Metal - PLAY AREA INSPECTOR
06-Oct-20,Culture & Environment Services,The Windscreen Co,48.00,Direct Transport Costs,Chip repair to AY69 GKP
15-Oct-20,Housing & Community Services,Greater Anglia Trains,80.40,Use Of Public Transport,Train travel to SIA course
29-Oct-20,Culture & Environment Services,Home Bargains,22.37,Cleaning Supplies,Cleaning Products for staff areas
28-Oct-20,Culture & Environment Services,Www.Lockshopdirect.Co.,61.67,Equipment / Furniture / Materials,Code lock replacement for Lloyds Ache Bollards 
16-Oct-20,Culture & Environment Services,Horticultural Sppls Ltd,51.35,Materials and Supplies - Miscellaneous,compost
08-Oct-20,People & Governance,Eb *birketts Annual Em,30.00,Training Expenses,Course fee for 14th Oct 
02-Oct-20,Culture & Environment Services,Booker Limited Ipswich,95.94,Materials and Supplies - Miscellaneous,COVID related purchase
05-Oct-20,Culture & Environment Services,Amznmktplace Amazon.Co.Uk,16.65,Materials and Supplies - Miscellaneous,COVID related purchase
06-Oct-20,Culture & Environment Services,Amznmktplace,11.65,Materials and Supplies - Miscellaneous,COVID related purchase
15-Oct-20,Culture & Environment Services,Screwfix Dir. Ltd,7.47,Equipment / Furniture / Materials,Cutting Discs - PLAY AREA INSPECTOR
14-Oct-20,Culture & Environment Services,Sovereign Turf Ltd,770.00,Miscellaneous Stock  - Purchases,Delivery of TURF - LANDSCAPE TEAM
14-Oct-20,Culture & Environment Services,Sovereign Turf Ltd,770.00,Miscellaneous Stock  - Purchases,Delivery of TURF - LANDSCAPE TEAM
14-Oct-20,Culture & Environment Services,Sovereign Turf Ltd,770.00,Miscellaneous Stock  - Purchases,Delivery of TURF - LANDSCAPE TEAM
30-Oct-20,Finance & Revenues,Amznmktplace,65.97,Computer Equipment - Purchase,Dell AC adapters x 3 ICT
28-Oct-20,Finance & Revenues,Paypal,29.99,Web Service costs,Domain renewal
30-Oct-20,Housing & Community Services,Wilko Retail Limited,10.00,Stationery,door bell
08-Oct-20,Culture & Environment Services,Wickes Martlesham Heath,21.67,Equipment / Furniture / Materials,Dried Kiln - PLAY ARE INSPECTOR
22-Oct-20,Finance & Revenues,Mermaid Inn,47.62,Services for Clients,Emergency Hotel Accommodation 
06-Oct-20,People & Governance,Www.Banneruk.Com,143.70,Miscellaneous Stock  - Purchases,Envelopes for the print room use
08-Oct-20,People & Governance,Www.Banneruk.Com,63.60,Miscellaneous Stock  - Purchases,Envelopes for the Print Room use
09-Oct-20,Culture & Environment Services,Www.Lockshopdirect.Co.,60.55,Equipment / Furniture / Materials,External Padlocks
23-Oct-20,Culture & Environment Services,Machine Mart Ltd,14.97,Equipment / Furniture / Materials,extractor kit - PLAY AREA INSPECTOR
16-Oct-20,Culture & Environment Services,Firstaid4less.Co.Uk,109.90,Cleaning Supplies,First Aid Supplies
22-Oct-20,Culture & Environment Services,Cpw Locksmiths And Securi,123.75,Equipment / Furniture / Materials,Fitting of new door lock and cutting of keys.
09-Oct-20,Culture & Environment Services,Hampshirefl,55.89,Equipment / Furniture / Materials,Flagpole items for Greenflag
08-Oct-20,Culture & Environment Services,Screwfix Direct,13.32,Miscellaneous Stock  - Purchases,Folding Knife - SHERRINGTON REC
08-Oct-20,People & Governance,Eb *birketts Annual Em,30.00,Training Expenses,Training course 
14-Oct-20,Finance & Revenues,Service Fees - Fraedom Pty Ltd,383.15,Computer Software - Maintenance,Fraedom card fees 01/09/20-30/09/20
28-Oct-20,Housing & Community Services,Corgi,372.00,Stationery,Gas Safe Registration 
02-Oct-20,People & Governance,Google Ads7268098578,10.03,Advertising/Publicity,Google Ad campaign - reopening/memberships
23-Oct-20,Culture & Environment Services,Groundsman Tools And Supp,76.52,Materials and Supplies - Miscellaneous,Grounds maintenance equipment
13-Oct-20,Culture & Environment Services,Bunzl Cleaning & Hygie,54.66,Cleaning Supplies,Hand sanitiser foam for back of crem
08-Oct-20,Culture & Environment Services,Amznmktplace,16.48,Materials and Supplies - Miscellaneous,Heavy Duty Scissors x 2 pairs
26-Oct-20,Housing & Community Services,Sequence UK Ltd Re Conn,115.00,Services for Clients,Holding fee 
19-Oct-20,Culture & Environment Services,Amazon.Co.Uk,91.57,Materials and Supplies - Miscellaneous,I.T equipment
01-Oct-20,Culture & Environment Services,Crystal Health Group Limi,145.00,Equipment / Furniture / Materials,HR services
07-Oct-20,Culture & Environment Services,Crystal Health Group Limi,40.83,Equipment / Furniture / Materials,HR services
23-Oct-20,Culture & Environment Services,Crystal Health Group Limi,145.00,Equipment / Furniture / Materials,HR services
22-Oct-20,Culture & Environment Services,Amznmktplace,52.80,Materials and Supplies - Miscellaneous,I.T equipment
26-Oct-20,Finance & Revenues,Cbt Nuggets Llc,46.67,Training Expenses,ICT training
01-Oct-20,Culture & Environment Services,Kings,32.50,Materials and Supplies - Miscellaneous,KEYS CUT - CHANTRY HUB
22-Oct-20,Culture & Environment Services,Kings,8.33,Materials and Supplies - Miscellaneous,Keys cut x 2
13-Oct-20,Finance & Revenues,Www.Softcat.Com,584.84,Computer Equipment - Purchase,KVM Switch ICT
27-Oct-20,People & Governance,Amznmktplace Amazon.Co.Uk,34.92,Stationery,Labels ordered for Cemeteries
08-Oct-20,Culture & Environment Services,Www.Banneruk.Com,11.99,Stationery,Laminating pouches and batteries
15-Oct-20,Culture & Environment Services,J P Lennard Ltd,272.35,Equipment / Furniture / Materials,lane rope white boom floats for leisure pool seperator
22-Oct-20,Finance & Revenues,Amznmktplace,17.99,Equipment / Furniture / Materials,Laptop Riser
29-Oct-20,Development,Argos Ltd,33.33,Equipment / Furniture / Materials,Laptop trolley
08-Oct-20,Development,Argos Ltd,33.33,Equipment / Furniture / Materials,Laptop trolley
28-Oct-20,People & Governance,Www.Paper.Co.Uk,119.08,Miscellaneous Stock  - Purchases,Large Format Paper for the Print Room
06-Oct-20,Finance & Revenues,Lon Stck Exc/net,65.00,Non Contracted_Professional Services,LEI annual licence fee
21-Oct-20,Culture & Environment Services,J D Lifting Ltd,123.45,Miscellaneous Stock  - Purchases,Lifting Equipment - LANDSCAPE TEAM
30-Oct-20,Culture & Environment Services,Screwfix Direct,66.67,Miscellaneous Stock  - Purchases,Line marking paint
07-Oct-20,Culture & Environment Services,Screwfix Direct,18.56,Equipment / Furniture / Materials,Line marking paint and Evo-Stik Adhesive for jump box
07-Oct-20,Culture & Environment Services,Screwfix Direct,10.00,Equipment / Furniture / Materials,Line marking paint and Evo-Stik Adhesive for jump box
07-Oct-20,Culture & Environment Services,Screwfix Direct,10.00,Equipment / Furniture / Materials,Line marking paint and Evo-Stik Adhesive for jump box
30-Oct-20,Culture & Environment Services,Www.Pitchcare.Com,52.78,Equipment / Furniture / Materials,Line marking paint for grass
14-Oct-20,Housing & Community Services,Www.Toolstation.Com,16.65,Equipment / Furniture / Materials,Lock boxes for TL's radios
14-Oct-20,Housing & Community Services,Toolstation Ltd,33.30,Equipment / Furniture / Materials,Lock boxes for TL's radios
19-Oct-20,People & Governance,Shopify* 91211251,23.22,Financial Fees & Services,Made in Suffolk online shop
13-Oct-20,People & Governance,Mailchimp,500.37,Advertising/Publicity,Mailchimp
27-Oct-20,People & Governance,Mailchimp,257.38,Subscriptions - Service Related,Mailchimp
07-Oct-20,Housing & Community Services,Waitrose Ltd,0.77,Stationery,Milk
14-Oct-20,Housing & Community Services,Waitrose Ltd,0.54,Stationery,Milk
16-Oct-20,Housing & Community Services,Amznmktplace,4.50,Telecommunication Costs - Mobiles,Mobile phone case
07-Oct-20,Culture & Environment Services,Amznmktplace,218.95,Computer Equipment - Purchase,New Tablet for R11
05-Oct-20,Finance & Revenues,Microsoft*365,43.10,Computer Equipment - Purchase,O365 E5 licence for local plan audio conference
26-Oct-20,Finance & Revenues,Msft * E0200cdqpi,7.50,Computer Equipment - Purchase,O365 Power BI licence (p and p)
15-Oct-20,Housing & Community Services,Amznmktplace,24.99,Premises Costs - Miscellaneous,Office Mop
02-Oct-20,Housing & Community Services,J2 Efax Plus Service,11.00,Miscellaneous Expenses,Outstanding expense from efax service housing
28-Oct-20,Housing & Community Services,Magnet,15.00,Materials and Supplies - Miscellaneous,Newall post
16-Oct-20,Culture & Environment Services,Dale Sauna Ltd,172.07,Cleaning Supplies,PAC
22-Oct-20,Corporate Management Team,Trainline,-53.50,Use Of Public Transport,Part refund for train ticket
22-Oct-20,Corporate Management Team,Trainline,-62.50,Use Of Public Transport,Part refund for train ticket
30-Oct-20,Development,Babergh District C,100.00,Non Contracted_Professional Services,Partnership Inspections
20-Oct-20,Development,Www.Midsuffolk.Gov.Uk,100.00,Non Contracted_Professional Services,Partnership Inspections
13-Oct-20,Development,Www.Midsuffolk.Gov.Uk,100.00,Non Contracted_Professional Services,Partnership Inspections
20-Oct-20,Culture & Environment Services,Babergh District C,96.67,Capital Expenditure,Planning application
15-Oct-20,Culture & Environment Services,Www.Planningportal.Co.,215.83,Capital - Specific Works,Planning permission application
05-Oct-20,People & Governance,Www.Presco-Uk.Com,43.49,Miscellaneous Stock  - Purchases,Plastic Free Binding Covers - Print Room Use
09-Oct-20,Culture & Environment Services,Suffolk Fastener (Ipsw,17.90,Equipment / Furniture / Materials,Play Equipment fittings - PLAY ARE INSPECTOR
14-Oct-20,Culture & Environment Services,Screwfix Direct,199.79,Equipment / Furniture / Materials,plumbing spares and WD40
13-Oct-20,Culture & Environment Services,J P Lennard Ltd,196.14,Equipment / Furniture / Materials,Pools scoops and squeegees
26-Oct-20,Housing & Community Services,Southend County,20.00,Miscellaneous Expenses,Possession fees
21-Oct-20,Culture & Environment Services,Post Office Counter,5.00,Postage Costs,Postage - Office documents
15-Oct-20,Culture & Environment Services,Screwfix Direct,3.26,Miscellaneous Stock  - Purchases,Power Paint Mixer - SHERRINGTON REC
23-Oct-20,Housing & Community Services,Tesco Store 2748,33.98,Specific Campaigns / Projects expenditure,Purchase phones for RSI clients from personal budget
01-Oct-20,Culture & Environment Services,Lumberjacks,21.72,Miscellaneous Stock  - Purchases,Railway Sleeper - ALDERMAN REC
22-Oct-20,Housing & Community Services,Amz*gpbatteries Direct,-7.90,Equipment / Furniture / Materials,Refund for damaged stylus batteries that have been reordered
26-Oct-20,Culture & Environment Services,Amz*baolongking,-52.80,Materials and Supplies - Miscellaneous,refund for I.T equipment
16-Oct-20,Housing & Community Services,Cpw Locksmiths And Securi,100.83,HRA Special Repairs & Maintenance,repair/replace/renew lock/keys 
08-Oct-20,Housing & Community Services,Cpw Locksmiths And Securi,33.33,HRA Special Repairs & Maintenance,repair/replace/renew lock/keys to sheltered properties
14-Oct-20,Housing & Community Services,Cpw Locksmiths And Securi,130.00,HRA Special Repairs & Maintenance,repair/replace/renew lock/keys to sheltered properties
19-Oct-20,Housing & Community Services,Cpw Locksmiths And Securi,80.00,HRA Special Repairs & Maintenance,repair/replace/renew lock/keys to sheltered properties
28-Oct-20,Housing & Community Services,Cpw Locksmiths And Securi,373.00,HRA Special Repairs & Maintenance,repair/replace/renew lock/keys to sheltered properties
09-Oct-20,Finance & Revenues,Www.Gov.Uk,1.25,Non Contracted_Professional Services,Wills and grants
16-Oct-20,Culture & Environment Services,Toolstation Ltd,31.46,Equipment / Furniture / Materials,Resin for bin installation - PLAY AREA INSPECTOR
21-Oct-20,People & Governance,Www.Voucherexpress.Co.,239.00,Specific Campaigns / Projects expenditure,REDACTED
22-Oct-20,People & Governance,Marks&spencer Plc,510.00,Specific Campaigns / Projects expenditure,REDACTED
08-Oct-20,Housing & Community Services,Digital Id,57.45,Subsistence & Conference/Seminar / Event Expenses,Ribbons from card printer
15-Oct-20,Culture & Environment Services,Screwfix Direct,8.22,Miscellaneous Stock  - Purchases,Sabre Saw Blades - LANDSCAPE TEAM
06-Oct-20,Culture & Environment Services,Wickes Ipswich,7.08,Equipment / Furniture / Materials,Sand & Cement - ELLENBROOK TOWER
15-Oct-20,People & Governance,Quadient UK Ltd,122.82,Miscellaneous Stock  - Purchases,Sealing Fluid for Print Room
15-Oct-20,People & Governance,Quadient UK Ltd,122.82,Miscellaneous Stock  - Purchases,Sealing Fluid for print room folder inserter machine
07-Oct-20,Culture & Environment Services,Wickes Ipswich,8.33,Materials and Supplies - Miscellaneous,Secateurs - CHANTRY HUB
26-Oct-20,People & Governance,Sp * Graphicsdirect.Co,102.06,Miscellaneous Stock  - Purchases,Self Adhesive Foam Boards for the Print Room
02-Oct-20,Culture & Environment Services,Screwfix Direct,4.47,Materials and Supplies - Miscellaneous,Service Cabinet Key x 3
15-Oct-20,Housing & Community Services,Elite Academy Ltd,195.83,Training Expenses,SIA Course
20-Oct-20,Housing & Community Services,Security Industry,190.00,Licences & Other Fees,SIA licence renewal
07-Oct-20,Culture & Environment Services,Newitts.Com,24.98,Equipment / Furniture / Materials,Skipping Ropes for Fitness Classes
19-Oct-20,People & Governance,"Sprout Social, Inc",760.46,Subscriptions - Service Related,Social media management system
08-Oct-20,Culture & Environment Services,Screwfix Direct,7.49,Materials and Supplies - Miscellaneous,Soldering Irons - CEMETERY OFFICE
16-Oct-20,Housing & Community Services,Abacus Lighting,362.74,Capital Expenditure,Special spring for lamp column for CCTV project
26-Oct-20,People & Governance,Colour Craft Direct Lt,13.58,Miscellaneous Stock  - Purchases,Specialist Envelopes for print room
26-Oct-20,People & Governance,Www.Paper.Co.Uk,317.66,Miscellaneous Stock  - Purchases,Specialist paper for the print room.
28-Oct-20,Culture & Environment Services,B & Q 1315,4.17,Cleaning Supplies,Spray bottles
15-Oct-20,Housing & Community Services,Screwfix Direct,9.98,Equipment / Furniture / Materials,Spreader Clamps Glazing 
13-Oct-20,Housing & Community Services,Www.Banneruk.Com,109.30,Stationery,Stationery
29-Oct-20,Housing & Community Services,Www.Banneruk.Com,88.87,Stationery,Stationery
08-Oct-20,Culture & Environment Services,Amznmktplace,19.27,Stationery,Stationery - PARK PATROL
06-Oct-20,Culture & Environment Services,The Range,9.97,Stationery,Stationery for Waste Services
27-Oct-20,Housing & Community Services,Cpw Locksmiths And Securi,13.00,HRA Special Repairs & Maintenance,Stratford Court padlock & keys for gate
15-Oct-20,People & Governance,Zoom.Gbp,23.98,Specific Campaigns / Projects expenditure,Subscription for online Council Meetings
01-Oct-20,Culture & Environment Services,Sainsburys S/mkts,0.92,Materials and Supplies - Miscellaneous,Sundries for Waste Services
02-Oct-20,Culture & Environment Services,Sainsburys S/mkts,3.33,Materials and Supplies - Miscellaneous,Sundries for Waste Services
06-Oct-20,Culture & Environment Services,Sainsburys S/mkt,0.92,Materials and Supplies - Miscellaneous,Sundries for Waste Services
02-Oct-20,Housing & Community Services,Caffe Nero,5.35,Specific Campaigns / Projects expenditure,Subsistance
12-Oct-20,Housing & Community Services,Easyhotel Ipswich,169.10,Services for Clients,Temp SK
08-Oct-20,Development,Government Events,228.98,Training Expenses,The UK House Building and Housing Supply Conference
09-Oct-20,Culture & Environment Services,Lumberjacks,42.71,Equipment / Furniture / Materials,Timber for Play Area - PLAY ARE INSPECTOR
02-Oct-20,Development,Amznmktplace,10.40,Premises Costs - Miscellaneous,timer plug
13-Oct-20,Culture & Environment Services,Wickes Ipswich,65.00,Equipment / Furniture / Materials,Ton bag of sand & spirit levels for masons
29-Oct-20,Culture & Environment Services,Indespension,127.77,Parks Vehicle Costs,Trailer Service
29-Oct-20,Housing & Community Services,Sainsburys Petrol,16.38,Equipment / Furniture / Materials,Un Leaded Fuel for small plant machinery
08-Oct-20,Culture & Environment Services,Dvla Vehicle Tax,267.50,Direct Transport Costs,VEHICLE TAX AV61 RKA
08-Oct-20,Culture & Environment Services,Dvla Vehicle Tax,267.50,Direct Transport Costs,VEHICLE TAX AV61 TGN
08-Oct-20,Culture & Environment Services,Dvla Vehicle Tax,267.50,Parks Vehicle Costs,VEHICLE TAX EJ64 EWA
08-Oct-20,Culture & Environment Services,Dvla Vehicle Tax,267.50,Parks Vehicle Costs,VEHICLE TAX EJ64 EWB
08-Oct-20,Culture & Environment Services,Dvla Vehicle Tax,267.50,Parks Vehicle Costs,VEHICLE TAX EJ64 EWC
12-Oct-20,Culture & Environment Services,Dvla Vehicle Tax,22.50,Direct Transport Costs,VEHICLE TAX FOR AF64 TXE
12-Oct-20,Culture & Environment Services,Dvla Vehicle Tax,267.50,Parks Vehicle Costs,VEHICLE TAX FOR AO64 HMV
08-Oct-20,Culture & Environment Services,Dvla Vehicle Tax,267.50,Direct Transport Costs,VEHICLE TAX FOR AY63 WHM
12-Oct-20,Culture & Environment Services,Dvla Vehicle Tax,562.50,Direct Transport Costs,VEHICLE TAX FOR AY66 CYA
08-Oct-20,Culture & Environment Services,Dvla Vehicle Tax,267.50,Parks Vehicle Costs,VEHICLE TAX LD66 KCO
08-Oct-20,Culture & Environment Services,Dvla Vehicle Tax,267.50,Parks Vehicle Costs,VEHICLE TAX LD66 KCU
08-Oct-20,Culture & Environment Services,Dvla Vehicle Tax,267.50,Parks Vehicle Costs,VEHICLE TAX LD66 KCV
08-Oct-20,Culture & Environment Services,Dvla Vehicle Tax,267.50,Parks Vehicle Costs,VEHICLE TAX LD66 KCX
28-Oct-20,Culture & Environment Services,Ropesdirect.Co.Uk,193.30,Equipment / Furniture / Materials,White Rope for Remembrance Service
16-Oct-20,Housing & Community Services,Amznmktplace,7.73,Equipment / Furniture / Materials,Wire Brush Glazing
12-Oct-20,Finance & Revenues,"Probrand Ltd.,",56.14,Computer Equipment - Purchase,Wireless KB and MSE set x 2
